[Event "TUR-ch U13-18 Open 2023"]
[Site "Antalya"]
[Date "2023.01.25"]
[Round "6"]
[White "Kazik, Oguz Kagan"]
[Black "Ozkeskin, Nazim Efe"]
[Result "1-0"]
[ECO "B10"]
[WhiteElo "2053"]
[BlackElo "1742"]
[Annotator "TA"]
[PlyCount "172"]
[EventDate "2023.01.17"]
[EventType "swiss"]
[EventCountry "TUR"]
[SourceTitle "playchess.com"]
[Source "ChessBase"]
[SourceQuality "1"]
[TimeControl "5400+30"]

{[%evp 11,172,0,2,0,0,0,0,0,11,0,0,-6,-14,-85,44,64,63,0,-24,-40,39,14,92,88,61,69,152,139,168,167,210,217,196,175,228,113,107,111,132,67,98,64,202,205,203,208,193,197,201,202,208,198,196,199,226,193,194,172,170,160,215,222,261,264,258,221,264,263,316,316,310,302,302,295,343,341,365,342,341,285,287,269,350,307,365,294,395,387,363,367,361,354,364,363,366,364,365,363,442,437,470,474,454,397,397,280,280,280,282,243,365,365,362,261,419,0,270,225,225,201,235,229,225,197,189,189,232,225,225,219,225,225,225,225,225,225,225,163,243,243,243,243,243,243,243,243,243,243,29971,29972,29971,29972,29967,29969,29970,29972,29969,29970,29975,29976,29965,6597,29979]} 1. c4 {[%emt 0:01:00]} c6 {[%emt 0:04:00]} 2. e4 {[%emt 0:00:30]} d5 {[%emt 0:00:30]} 3. exd5 {[%emt 0:00:30]} cxd5 {[%emt 0:00:30]} 4. cxd5 {[%emt 0:00:30]} Nf6 {[%emt 0:00:00]} 5. Nc3 {[%emt 0:00:00][%cal Bb1c3,Bc3e4,Be4c5][%mdl 32]} Nxd5 {[%emt 0:00:00]} 6. Nf3 {[%emt 0:00:00]} Nc6 {[%emt 0:00:00] The main line 6...Nc6 scores better than 6...e6.} 7. Bb5 {[%emt 0:00:00] B10: Caro-Kann: 2 d3 and 2 c4.} g6 {[%emt 0:00:00]} 8. Qa4 {[%emt 0:11:00]} Qd6 {[%emt 0:00:30]} 9. Ne4 {[%emt 0:05:30] The position is equal.} Qe6 {[%emt 0:00:00]} 10. Nfg5 {[%emt 0:09:30]} Qd7 {[%emt 0:00:00]} 11. Nc5 {[%emt 0:01:30]} Qc7 {[%emt 0:00:30] [#]} 12. Qc4 $146 {[%emt 0:02:30]} (12. Qd4 $11 {remains equal.} Nf6 13. Qc4) ({Predecessor:} 12. Qd4 Nf6 13. Qc4 e6 14. O-O Be7 15. d3 a6 16. Nxa6 Rxa6 17. Bxa6 bxa6 18. Bf4 {½-½ Feuerstack,A (2374)-Donchenko,A (2573) GER-ch Net blitz sf 2021 (12)}) 12... Qe5+ {[%emt 0:15:30]} (12... e6 $1 $17 {Threatens to win with ...Bxc5.} 13. Qd4 Rg8) 13. Nce4 $14 {[%emt 0:09:30]} Bd7 {[%emt 0:04:30]} 14. Nf3 {[%emt 0:09:30]} (14. d4 $1 $14 Qxd4 15. O-O) 14... Qf5 $11 {[%emt 0:08:30]} 15. O-O {[%emt 0:04:30] Strongly threatening Re1.} Nb6 {[%emt 0:08:30]} ({Black should try} 15... Nc7 $15 16. Bxc6 Bxc6) 16. Qc3 $36 {[%emt 0:06:30][%mdl 2048] White has good play.} (16. Qe2 $5 {[%cal Re4d6]} O-O-O 17. d4 $11) 16... Rg8 {[%emt 0:11:30] [#]} (16... Ne5 $1 $11 17. Bxd7+ Nbxd7 18. Nxe5 Qxe5) 17. Re1 $1 $16 {[%emt 0:02:30]} O-O-O {[%emt 0:01:30]} (17... Qxb5 $2 18. Nd6+ Kd8 19. Nxb5 $18) 18. Nc5 {[%emt 0:11:30] And now d4 would win.} Nd5 {[%emt 0:08:30]} (18... e6 $14 19. d4 Nd5) 19. Qb3 $1 {[%emt 0:03:30]} Nb6 {[%emt 0:14:30]} 20. Nxd7 {[%emt 0:06:03]} Rxd7 {[%emt 0:02:55]} 21. Bxc6 $1 {[%emt 0:00:18]} bxc6 {[%emt 0:00:34]} 22. Ne5 {[%emt 0:01:22]} Rd6 {[%emt 0:01:54]} (22... Rc7 {keeps fighting.} 23. Nxf7 (23. Qxf7 Qxf7 24. Nxf7 Nd5 $16) 23... Nd5) 23. Qxf7 {[%emt 0:01:56]} (23. Nxf7 $2 {is the wrong capture.} Rf6 24. f3 Rxf7 $19) (23. d4 $1 $18 {is the precise move to win.}) 23... Rf6 {[%emt 0:10:48]} 24. Qe8+ {[%emt 0:00:45]} Kc7 {[%emt 0:00:25] [#]} 25. f3 {[%emt 0:04:50]} ({White should play} 25. Nf3 $1 $16) 25... Rh8 {[%emt 0:01:13]} 26. d4 {[%emt 0:03:34] The board is on fire. White is much more active.} Nc8 {[%emt 0:05:45]} (26... Re6 $1 $14 27. Bd2 Bg7) 27. Bd2 $18 {[%emt 0:03:53]} Bg7 {[%emt 0:01:00]} 28. Ba5+ {[%emt 0:00:30]} Kb7 {[%emt 0:00:30]} 29. Qd7+ {[%emt 0:00:00]} Qxd7 {[%emt 0:00:02]} 30. Nxd7 {[%emt 0:00:11][%cal Be5d7,Bd7c5,Bc5e6][%mdl 32]} Rd6 {[%emt 0:00:30]} 31. Nc5+ {[%emt 0:00:00]} Ka8 {[%emt 0:00:02]} 32. Ne6 {[%emt 0:00:00]} Bf6 {[%emt 0:01:14]} 33. Rad1 {[%emt 0:00:35]} Nb6 {[%emt 0:00:23]} 34. Bc3 {[%emt 0:00:45]} Nd5 {[%emt 0:00:37]} 35. Nc5 {[%emt 0:01:06]} Nxc3 {[%emt 0:00:30]} (35... Rhd8 $16 {is a better defense.} 36. Rc1 h5) 36. bxc3 {[%emt 0:00:30]} Rd5 {[%emt 0:00:30]} 37. Re6 {[%emt 0:00:30]} Rd6 {[%emt 0:00:30]} 38. Rde1 {[%emt 0:00:30]} Rhd8 {[%emt 0:00:30]} 39. Kf2 {[%emt 0:00:30]} Rxd4 {[%emt 0:00:30]} 40. cxd4 {[%emt 0:00:30]} Bxd4+ {[%emt 0:00:30]} 41. Ke2 {[%emt 0:00:30]} Bxc5 {[%emt 0:00:30]} 42. Rxc6 {[%emt 0:00:30][%mdl 4096] Endgame KRR-KRB} Rd5 {[%emt 0:00:30]} 43. Rb1 {[%emt 0:00:30][%cal Rc6c8]} Re5+ {[%emt 0:00:30]} 44. Kd3 {[%emt 0:00:30][%cal Rc6c8]} Bb6 {[%emt 0:00:30]} 45. Rc8+ {[%emt 0:00:30]} Kb7 {[%emt 0:00:30]} 46. Rh8 {[%emt 0:00:30]} h5 {[%emt 0:00:00]} 47. Rb2 {[%emt 0:00:00]} Kc7 {[%emt 0:00:28]} 48. Rg8 {[%emt 0:00:01]} Rd5+ {[%emt 0:00:32]} 49. Ke4 {[%emt 0:00:06]} Rd4+ {[%emt 0:00:47]} 50. Ke5 {[%emt 0:00:30][%cal Ob2b6] Rxb6! is the strong threat.} Rd6 {[%emt 0:00:00]} 51. Rc2+ {[%emt 0:01:08]} Kd7 {[%emt 0:00:04]} 52. Kf4 {[%emt 0:00:14]} Rf6+ {[%emt 0:01:06]} 53. Kg3 {[%emt 0:00:36]} Bc7+ {[%emt 0:01:22]} 54. Kh3 {[%emt 0:00:20]} a5 {[%emt 0:00:16]} 55. g3 {[%emt 0:01:01]} Bd6 {[%emt 0:00:30]} 56. f4 {[%emt 0:00:30]} a4 {[%emt 0:00:30] [#]} 57. a3 $1 {[%emt 0:00:08]} Bxa3 {[%emt 0:00:34]} 58. Ra8 {[%emt 0:00:30]} Bd6 {[%emt 0:00:11]} 59. Rxa4 {[%emt 0:00:01]} Ke6 {[%emt 0:00:31]} 60. Ra5 {[%emt 0:00:12]} Kf7 {[%emt 0:00:12]} (60... Rf5 {was necessary.}) 61. Kh4 {[%emt 0:01:15]} Kg7 {[%emt 0:00:30]} 62. Rc8 {[%emt 0:00:30]} Re6 $2 {[%emt 0:00:30]} (62... Rf7 63. Rd5 Bb4) 63. Rc2 $2 {[%emt 0:00:30]} (63. Raa8 $18) 63... Re4 $2 {[%emt 0:00:30][%mdl 8192]} (63... Rf6 $1 $11 64. Kg5 Bb4) 64. Kh3 {[%emt 0:02:03]} Re3 {[%emt 0:01:15]} 65. Kg2 {[%emt 0:00:09]} Kf7 {[%emt 0:00:35]} 66. Kf2 {[%emt 0:00:23]} Rb3 {[%emt 0:00:20]} 67. Ke2 {[%emt 0:00:08]} Kf6 {[%emt 0:00:08]} 68. Rd5 {[%emt 0:00:38]} Ke6 {[%emt 0:00:30]} 69. Rd3 {[%emt 0:00:11]} Rb5 {[%emt 0:00:32]} 70. Kf3 {[%emt 0:00:15]} Rb4 {[%emt 0:00:22]} 71. Re2+ {[%emt 0:00:46]} Kf6 {[%emt 0:00:17]} 72. Re4 {[%emt 0:01:11]} Rb2 {[%emt 0:00:30]} 73. h3 {[%emt 0:00:00]} Rh2 {[%emt 0:00:41]} 74. Rde3 {[%emt 0:02:23]} Bc5 {[%emt 0:00:33]} (74... h4 {was worth a try.}) 75. Re6+ {[%emt 0:00:00]} Kf7 {[%emt 0:00:30] [#]} 76. Re2 $1 {[%emt 0:00:00] Rxe7+ would be deadly.} ({Stronger than} 76. R3e5 Rf2+ 77. Ke4 Bd6 $11) 76... Rh1 {[%emt 0:00:40]} 77. Re1 {[%emt 0:00:00] Black must now prevent Rxe7+.} Rxe1 {[%emt 0:00:29]} 78. Rxe1 {[%emt 0:00:05][%cal Of4f5] KR-KB} Kf6 {[%emt 0:00:30]} 79. g4 {[%emt 0:00:30][%cal Bg3g4,Bg4g5][%mdl 32]} h4 $2 {[%emt 0:00:30]} (79... hxg4+ $18 80. hxg4 Kf7) 80. g5+ {[%emt 0:00:30]} Kf7 {[%emt 0:00:30]} 81. Re2 {[%emt 0:00:30]} Bd6 {[%emt 0:00:30]} 82. Kg4 {[%emt 0:00:30]} Ke8 {[%emt 0:00:30]} 83. Re4 {[%emt 0:00:30]} Kd7 {[%emt 0:00:30]} 84. Kxh4 {[%emt 0:00:30]} Kc6 {[%emt 0:00:30]} 85. Kg4 {[%emt 0:00:30]} Kd5 {[%emt 0:00:30]} 86. Re1 {[%emt 0:00:30] White threatens f5 and mate.} Bc7 {[%emt 0:00:30] Weighted Error Value: White=0.19 (very precise) /Black=0.31} 1-0

[Event "TUR-ch U13-18 Open 2023"]
[Site "Antalya"]
[Date "2023.01.25"]
[Round "6"]
[White "Demirtas, Alper"]
[Black "Deveci, Huseyin Said"]
[Result "1-0"]
[ECO "E05"]
[WhiteElo "1990"]
[BlackElo "1987"]
[Annotator "TA"]
[PlyCount "115"]
[EventDate "2023.01.17"]
[EventType "swiss"]
[EventCountry "TUR"]
[SourceTitle "playchess.com"]
[Source "ChessBase"]
[SourceQuality "1"]
[TimeControl "5400+30"]

{[%evp 24,115,29,31,24,0,10,0,18,21,22,25,20,11,44,30,118,118,124,123,150,131,181,140,176,172,210,164,201,164,164,164,158,157,133,123,123,123,124,122,122,122,122,122,134,134,152,145,140,119,112,92,133,120,173,134,166,167,172,172,235,225,259,264,254,254,258,257,253,261,263,236,364,363,540,540,584,555,589,539,597,551,765,741,1715,1705,1613,1587,1800,1530,29976,29977,29976,29977]} 1. c4 {[%emt 0:01:00]} Nf6 {[%emt 0:01:00]} 2. Nf3 {[%emt 0:00:00]} e6 {[%emt 0:00:30]} 3. g3 {[%emt 0:00:00]} d5 {[%emt 0:00:30]} 4. d4 {[%emt 0:00:30]} Be7 {[%emt 0:00:30]} 5. Bg2 {[%emt 0:00:30]} O-O {[%emt 0:00:30]} 6. O-O {[%emt 0:00:00]} dxc4 {[%emt 0:00:30]} 7. Ne5 {[%emt 0:00:00]} Nc6 {[%emt 0:01:30]} 8. Bxc6 {[%emt 0:00:00]} bxc6 {[%emt 0:00:00]} 9. Nxc6 {[%emt 0:00:00]} Qe8 {[%emt 0:00:00]} 10. Nxe7+ {[%emt 0:00:30]} Qxe7 {[%emt 0:00:30]} 11. Qa4 {[%emt 0:00:00]} e5 {[%emt 0:03:30]} 12. dxe5 {[%emt 0:00:00]} Qxe5 {[%emt 0:00:00]} 13. Qxc4 {[%emt 0:01:30]} Be6 {[%emt 0:00:00] E05: Open Catalan: 5 Nf3 Be7.} 14. Qc2 {[%emt 0:03:30] The main line 14.Qc2 scores better than 14.Qd3.} Bf5 {[%emt 0:00:30]} 15. Qc4 {[%emt 0:00:30]} Be6 {[%emt 0:00:00] The position is equal.} 16. Qd3 {[%emt 0:08:30]} Rad8 {[%emt 0:17:00]} 17. Qe3 {[%emt 0:01:30]} Qh5 {[%emt 0:02:30] White must now prevent ...Ng4.} 18. f3 {[%emt 0:01:30] Wards off Ng4} Rfe8 {[%emt 0:07:30]} (18... Bc4 $5 {[%cal Rf8e8]} 19. Nc3 Rfe8 $14) 19. Qf2 {[%emt 0:14:30]} g5 {[%emt 0:07:30]} (19... Bc4 $11 {keeps the balance.} 20. Nc3 Nd5) 20. Nc3 $16 {[%emt 0:05:30]} (20. Qxa7 Bc4 21. Qc5 Bxe2 22. Qxg5+ Qxg5 23. Bxg5 Bxf1 $17) 20... Bh3 {[%emt 0:18:30]} 21. Re1 {[%emt 0:02:30] [#]} Qg6 $146 {[%emt 0:07:30]} ({Predecessor:} 21... g4 22. Be3 a6 23. Rad1 Nd5 24. Bd4 c5 25. fxg4 Qg5 26. e4 Nxc3 27. Bxc3 Rxd1 28. Rxd1 Rd8 29. Rxd8+ Qxd8 30. Qe2 Qg5 31. Kf2 Qxg4 32. Qd2 h5 33. Qd8+ {1-0 Wojtkiewicz,A (2420)-Kalinin,O (2315) Rzeszow 19th 1988 (11)}) 22. Be3 {[%emt 0:06:30]} g4 {[%emt 0:03:30]} (22... Nd5 $16 {was necessary.} 23. Nxd5 (23. Bxa7 Nxc3 24. bxc3 Rd2 $16) 23... Rxd5 24. Bxa7 Rd2) 23. Rad1 {[%emt 0:09:30]} Rxd1 {[%emt 0:02:30]} 24. Rxd1 {[%emt 0:01:30]} (24. Nxd1 Nd7 $16) 24... Qc2 {[%emt 0:00:30]} 25. Bd4 {[%emt 0:03:30]} Nd5 {[%emt 0:04:30]} 26. e4 {[%emt 0:00:30]} (26. Bxa7 Nxc3 27. Re1 Nxe2+ 28. Kh1 Nxg3+ 29. Qxg3 Rxe1+ 30. Bg1 Qe2 31. b4 Rxg1+ 32. Qxg1 Qxf3+) 26... Qxf2+ {[%emt 0:00:30]} 27. Kxf2 {[%emt 0:00:30]} Nxc3 {[%emt 0:00:00]} 28. Bxc3 {[%emt 0:00:00]} gxf3 {[%emt 0:00:00]} 29. Kxf3 $18 {[%emt 0:00:00][%mdl 4096] Endgame KRB-KRB} f5 {[%emt 0:03:30]} 30. exf5 {[%emt 0:00:30]} Bxf5 {[%emt 0:00:56]} 31. g4 {[%emt 0:01:30]} Be6 {[%emt 0:03:10]} 32. a3 {[%emt 0:00:30]} Kf7 {[%emt 0:02:04]} 33. Rd4 {[%emt 0:04:30]} a6 {[%emt 0:00:38]} 34. h4 {[%emt 0:01:30]} Rg8 {[%emt 0:05:53]} 35. Ra4 {[%emt 0:01:30]} Rg6 {[%emt 0:04:27]} 36. g5 {[%emt 0:01:30]} (36. Rxa6 $2 {loses.} Bd5+ 37. Kg3 Rxa6 $19) 36... Bd5+ {[%emt 0:00:16]} 37. Kf4 {[%emt 0:01:30] Ra5 would be deadly.} Re6 {[%emt 0:00:16]} 38. Rd4 {[%emt 0:00:30]} c6 {[%emt 0:01:39]} (38... Bb3 $16 39. Bb4 (39. Rd7+ Re7 $16) 39... Ke8) 39. Kf5 {[%emt 0:02:30]} Re2 {[%emt 0:01:39] [#]} 40. Ra4 $1 {[%emt 0:01:30]} Be6+ {[%emt 0:02:51]} 41. Kf4 {[%emt 0:00:30]} Kg6 {[%emt 0:00:50]} (41... Rh2 $142 42. Ke5 (42. Rxa6 Rxh4+ 43. Ke5 Bd5 $18) 42... Bd5 43. Rxa6 Rxh4) 42. Rxa6 {[%emt 0:00:30]} Bd5 {[%emt 0:01:00]} 43. Ra7 {[%emt 0:02:30] Hoping for Rg7+.} Re4+ {[%emt 0:00:22]} 44. Kg3 {[%emt 0:00:30]} Re2 {[%emt 0:00:30]} 45. Rg7+ {[%emt 0:00:30][%mdl 64] Deflection} Kf5 {[%emt 0:00:30]} 46. Rxh7 {[%emt 0:00:30]} Rg2+ {[%emt 0:00:30]} 47. Kh3 {[%emt 0:00:00]} Rg1 {[%emt 0:00:54]} (47... Rf2 $142 48. Rh6 Rf3+ 49. Kh2 Kg4) 48. Rh8 {[%emt 0:00:00]} Kf4 {[%emt 0:00:55]} (48... Rh1+ {might work better.} 49. Kg3 Rg1+ 50. Kf2 Rg4) 49. Rf8+ {[%emt 0:00:30]} Ke3 {[%emt 0:00:00]} 50. a4 {[%emt 0:02:30]} c5 {[%emt 0:00:08] [#]} 51. Bd2+ $1 {[%emt 0:03:30][%mdl 512]} Ke2 {[%emt 0:00:56]} (51... Kd3 52. Rd8) 52. Bf4 {[%emt 0:01:30]} Bf3 {[%emt 0:00:28]} 53. Re8+ {[%emt 0:00:30]} Kf1 {[%emt 0:00:06]} 54. Bg3 {[%emt 0:02:30][%csl Gg3][%cal Re8e1]} Rh1+ {[%emt 0:00:30]} 55. Bh2 {[%emt 0:00:30]} Kf2 {[%emt 0:00:30]} 56. Rf8 {[%emt 0:00:30] g6 would kill now.} Ra1 {[%emt 0:00:30]} 57. g6 {[%emt 0:00:30][%cal Bg5g6,Bg6g7][%mdl 32]} Rxa4 {[%emt 0:00:30]} 58. g7 {[%emt 0:00:30] Weighted Error Value: White=0.12 (very precise) /Black=0.30} 1-0

[Event "TUR-ch U13-18 Open 2023"]
[Site "Antalya"]
[Date "2023.01.25"]
[Round "6"]
[White "Temizer, Umut"]
[Black "Gokcek, Kursat Bugra"]
[Result "0-1"]
[ECO "B33"]
[WhiteElo "1989"]
[BlackElo "2116"]
[Annotator "TA"]
[PlyCount "92"]
[EventDate "2023.01.17"]
[EventType "swiss"]
[EventCountry "TUR"]
[SourceTitle "playchess.com"]
[Source "ChessBase"]
[SourceQuality "1"]
[TimeControl "5400+30"]

{[%evp 14,92,32,38,56,13,31,10,24,11,30,10,18,0,-3,-37,-28,-25,0,-14,0,-73,-81,-83,-82,-74,-70,-82,-77,-108,-72,-79,-37,-55,-50,-66,-70,-76,-80,-137,-128,-204,-208,-344,-206,-350,-185,-162,-186,-185,-168,-176,-156,-234,-203,-333,-314,-381,-369,-390,-387,-363,-358,-264,-254,-430,-432,-419,-408,-413,-399,-5994,-6010,-29951,-6283,-29986,-29987,-29987,-29988,-29997,-29998]} 1. e4 {[%emt 0:01:00]} c5 {[%emt 0:01:00]} 2. Nf3 {[%emt 0:00:30]} Nc6 {[%emt 0:00:30]} 3. d4 {[%emt 0:00:30]} cxd4 {[%emt 0:00:30]} 4. Nxd4 {[%emt 0:00:30]} Qb6 {[%emt 0:00:30]} 5. Nb3 {[%emt 0:00:30]} Nf6 {[%emt 0:00:30]} 6. Nc3 {[%emt 0:00:30]} e6 {[%emt 0:00:30]} 7. Be3 {[%emt 0:00:30] 7.Bd3 might become the main line.} Qc7 {[%emt 0:00:30]} 8. a3 {[%emt 0:20:30]} a6 {[%emt 0:04:30] B33: Sicilian: Pelikan and Sveshnikov Variations.} 9. g3 {[%emt 0:00:30]} d6 {[%emt 0:00:30]} 10. f4 {[%emt 0:00:30]} b5 {[%emt 0:00:30] The position is equal.} 11. Bg2 {[%emt 0:00:30]} Bb7 {[%emt 0:00:30]} 12. O-O {[%emt 0:00:30]} Be7 {[%emt 0:00:30]} 13. h3 {[%emt 0:00:30] [#]} Nd7 $146 {[%emt 0:00:30]} ({Predecessor:} 13... O-O 14. Qd2 b4 15. axb4 Nxb4 16. Na5 {½-½ Jones,I (1976)-Bevan,P (2013) West Wales op 48th 2015 (5)}) 14. Nd4 {[%emt 0:00:30]} Nxd4 {[%emt 0:00:30]} 15. Bxd4 {[%emt 0:00:30]} Bf6 {[%emt 0:00:30]} 16. Kh2 {[%emt 0:00:30]} e5 {[%emt 0:00:30]} 17. Bg1 {[%emt 0:00:30]} (17. fxe5 $11 Bxe5 18. a4 (18. Nd5 Bxd5 19. exd5 Bxd4 $11)) 17... exf4 $1 $17 {[%emt 0:00:30]} 18. gxf4 {[%emt 0:00:30]} Bxc3 {[%emt 0:00:30]} 19. bxc3 {[%emt 0:00:30]} O-O {[%emt 0:00:30]} 20. Qd4 {[%emt 0:00:30]} Nf6 {[%emt 0:00:30]} 21. Rfe1 {[%emt 0:00:30]} Rfe8 {[%emt 0:00:30]} 22. Rad1 {[%emt 0:00:30]} Re6 {[%emt 0:00:30] Hoping for ...Rae8.} (22... Rac8 $5 {[%cal Rc7c3]} 23. Re3 Nh5 $17) 23. Bf2 $1 {[%emt 0:00:30]} Rae8 {[%emt 0:00:30][%cal Rb7e4]} 24. f5 {[%emt 0:00:30]} Rxe4 {[%emt 0:00:30]} 25. Bxe4 {[%emt 0:00:30] Black keeps a firm grip on the game.} Nxe4 {[%emt 0:00:30]} 26. Bg3 {[%emt 0:00:30]} (26. f6 $142) 26... Qc6 {[%emt 0:00:30] White must now prevent ...Re7.} 27. Re2 {[%emt 0:00:30]} (27. Qe3 $17) 27... Ng5 $1 $19 {[%emt 0:00:30]} (27... Qxc3 $2 28. Qxc3 (28. Bxd6 $2 Qxd4 {[%mdl 64] Remove Defender} 29. Rxd4 Nxd6 $19) 28... Rc8 29. Rxe4 $18) 28. Rxe8+ {[%emt 0:00:30]} Qxe8 {[%emt 0:00:30]} 29. Rd3 {[%emt 0:00:30]} (29. Qf2 $142) 29... Qe2+ {[%emt 0:00:30]} (29... Qc6 $142 {[%csl Gb7][%cal Rc6h1]} 30. Qg1 Nf3+ 31. Rxf3 Qxf3) 30. Qf2 {[%emt 0:00:30] [#] White is weak on the light squares} Qe4 $40 {[%emt 0:00:30][%csl Gb7][%cal Re4h1][%mdl 128] Black goes for the king.} 31. Qf1 {[%emt 0:00:30] [#] Prevents Qh1+.} f6 $1 {[%emt 0:00:30]} 32. Bxd6 {[%emt 0:00:30]} h5 {[%emt 0:00:30][%cal Bh7h5,Bh5h4][%mdl 32]} 33. Kg3 {[%emt 0:00:30]} (33. Bf4 $17) 33... h4+ {[%emt 0:00:30]} 34. Kf2 {[%emt 0:00:30]} (34. Kh2 $142) 34... Qxf5+ {[%emt 0:00:30]} (34... Nf7 35. Bb8 $17) 35. Ke1 {[%emt 0:00:30]} Qe6+ {[%emt 0:00:30]} ({And not} 35... Bf3 36. Re3 $17) 36. Qe2 {[%emt 0:00:30]} Be4 {[%emt 0:00:30][%mdl 64] Deflection} 37. Rd1 {[%emt 0:00:30]} Nf3+ {[%emt 0:00:30]} ({Inferior is} 37... Bxc2 38. Qxe6+ Nxe6 39. Rd2 $11) (37... Nxh3 $2 {loses.} 38. Bh2 Ng5 39. Rd6 $19) 38. Kf2 {[%emt 0:00:30]} Qf5 {[%emt 0:00:30] Inhibits Bf4.} 39. Ke3 {[%emt 0:00:30] Prevents Nd4} (39. Qe3 {was the only defense.} Ne5+ 40. Ke1) 39... Bc6 {[%emt 0:00:30]} 40. Qd3 {[%emt 0:00:30]} Qxh3 {[%emt 0:00:30]} 41. Kf2 {[%emt 0:00:30]} Qg4 {[%emt 0:00:30] Wards off Bf4} 42. Bc5 $2 {[%emt 0:00:30]} (42. Re1) 42... Ne5 {[%emt 0:00:30]} 43. Qd8+ {[%emt 0:00:30]} Kh7 {[%emt 0:00:30] ( -> ...Qg2+)} 44. Qd4 {[%emt 0:00:30]} Qg2+ {[%emt 0:00:30][%mdl 64] Skewer. Black mates.} 45. Ke3 {[%emt 0:00:30]} Nc4+ {[%emt 0:00:30]} 46. Kd3 {[%emt 0:00:30]} Qf3+ {[%emt 0:00:30] Ingenious play by Gokcek!   Weighted Error Value: White=0.83/Black=0.09 (flawless)} 0-1